[Event "*** Titled Tuesday Blitz"]
[Site "Chess.com"]
[Date "2020.04.21"]
[Round "9"]
[White "chidori_boruto"]
[Black "Yuri202062"]
[Result "1-0"]
[WhiteElo "2637"]
[BlackElo "2485"]
[TimeControl "180+1"]
[EndTime "11:51:13 PDT"]
[Termination "chidori_boruto won on time"]

1. d4 {[%clk 0:03:00.8]} 1... d5 {[%clk 0:02:59.8]} 2. Bf4 {[%clk 0:02:59.9]}
2... c5 {[%clk 0:02:59.7]} 3. e3 {[%clk 0:02:59.9]} 3... Nc6 {[%clk 0:02:59.5]}
4. Nc3 {[%clk 0:03:00.2]} 4... cxd4 {[%clk 0:02:57.6]} 5. exd4 {[%clk
0:02:58.2]} 5... Bf5 {[%clk 0:02:56.8]} 6. Nf3 {[%clk 0:02:55.7]} 6... e6 {[%clk
0:02:56]} 7. Nb5 {[%clk 0:02:54.2]} 7... Rc8 {[%clk 0:02:54.8]} 8. a4 {[%clk
0:02:50]} 8... a6 {[%clk 0:02:48.8]} 9. Na3 {[%clk 0:02:49]} 9... Bd6 {[%clk
0:02:45.7]} 10. Bg3 {[%clk 0:02:43.1]} 10... Nf6 {[%clk 0:02:45]} 11. c3 {[%clk
0:02:43.3]} 11... O-O {[%clk 0:02:44.1]} 12. Bd3 {[%clk 0:02:43.5]} 12... Bxd3
{[%clk 0:02:41.2]} 13. Qxd3 {[%clk 0:02:43.6]} 13... Ne4 {[%clk 0:02:40.4]} 14.
Bxd6 {[%clk 0:02:40.2]} 14... Qxd6 {[%clk 0:02:38.8]} 15. O-O {[%clk 0:02:40.4]}
15... Na5 {[%clk 0:02:29.2]} 16. Qc2 {[%clk 0:02:33.5]} 16... Rc7 {[%clk
0:02:17.5]} 17. Ne5 {[%clk 0:02:30.5]} 17... Rfc8 {[%clk 0:02:12]} 18. f3 {[%clk
0:02:28.8]} 18... Nf6 {[%clk 0:02:04.9]} 19. Rfe1 {[%clk 0:02:24.7]} 19... Nd7
{[%clk 0:02:03.6]} 20. Nd3 {[%clk 0:02:20.8]} 20... b6 {[%clk 0:01:55.4]} 21.
Nb4 {[%clk 0:02:15.8]} 21... Ra7 {[%clk 0:01:53]} 22. Qe2 {[%clk 0:02:14]} 22...
Nc4 {[%clk 0:01:49.4]} 23. Nxc4 {[%clk 0:02:09]} 23... Rxc4 {[%clk 0:01:48.8]}
24. Rec1 {[%clk 0:02:05.9]} 24... a5 {[%clk 0:01:42.5]} 25. Nc2 {[%clk
0:02:03.9]} 25... Rc8 {[%clk 0:01:40.5]} 26. Qb5 {[%clk 0:02:00.1]} 26... Nf6
{[%clk 0:01:36.8]} 27. Ne3 {[%clk 0:01:59.4]} 27... Ne8 {[%clk 0:01:35.8]} 28.
Re1 {[%clk 0:01:56.6]} 28... h6 {[%clk 0:01:28.3]} 29. Re2 {[%clk 0:01:54.9]}
29... Nf6 {[%clk 0:01:21.1]} 30. Rae1 {[%clk 0:01:52.9]} 30... Qd7 {[%clk
0:01:20.6]} 31. Qb3 {[%clk 0:01:46.1]} 31... Rb7 {[%clk 0:01:17.7]} 32. Ra1
{[%clk 0:01:42.1]} 32... b5 {[%clk 0:01:16.1]} 33. axb5 {[%clk 0:01:41.9]} 33...
Qxb5 {[%clk 0:01:15.5]} 34. Qxb5 {[%clk 0:01:39.2]} 34... Rxb5 {[%clk
0:01:15.4]} 35. Ra2 {[%clk 0:01:37.8]} 35... Rcb8 {[%clk 0:01:13.9]} 36. Nd1
{[%clk 0:01:37.6]} 36... Ne8 {[%clk 0:01:12.5]} 37. Nf2 {[%clk 0:01:37.1]} 37...
Nd6 {[%clk 0:01:11.8]} 38. Nd3 {[%clk 0:01:37.3]} 38... Nc4 {[%clk 0:01:11.8]}
39. Kf1 {[%clk 0:01:35.6]} 39... Kf8 {[%clk 0:01:05.9]} 40. Ke1 {[%clk
0:01:35.7]} 40... Ke7 {[%clk 0:01:05.8]} 41. Kd1 {[%clk 0:01:34]} 41... Kd6
{[%clk 0:01:05.9]} 42. Kc1 {[%clk 0:01:30]} 42... f6 {[%clk 0:01:02.9]} 43. f4
{[%clk 0:01:23.1]} 43... g5 {[%clk 0:00:53.3]} 44. g3 {[%clk 0:01:09]} 44... Kd7
{[%clk 0:00:50.4]} 45. Nc5+ {[%clk 0:01:06.8]} 45... Rxc5 {[%clk 0:00:43.2]} 46.
dxc5 {[%clk 0:01:07.7]} 46... e5 {[%clk 0:00:34]} 47. fxe5 {[%clk 0:01:03.4]}
47... fxe5 {[%clk 0:00:33.6]} 48. Kc2 {[%clk 0:01:03.2]} 48... a4 {[%clk
0:00:30.6]} 49. Kc1 {[%clk 0:00:59.8]} 49... a3 {[%clk 0:00:21.9]} 50. bxa3
{[%clk 0:00:58.1]} 50... e4 {[%clk 0:00:21.7]} 51. a4 {[%clk 0:00:57.5]} 51...
Kc6 {[%clk 0:00:17.1]} 52. a5 {[%clk 0:00:57.3]} 52... Kxc5 {[%clk 0:00:16.5]}
53. a6 {[%clk 0:00:57.5]} 53... Ra8 {[%clk 0:00:16.1]} 54. Rf2 {[%clk
0:00:41.2]} 54... Ra7 {[%clk 0:00:13.3]} 55. g4 {[%clk 0:00:38.4]} 55... Ne5
{[%clk 0:00:09.4]} 56. Rf5 {[%clk 0:00:32.1]} 56... Nxg4 {[%clk 0:00:08.3]} 57.
Ra5+ {[%clk 0:00:26]} 57... Kc4 {[%clk 0:00:06]} 58. Rfxd5 {[%clk 0:00:26.2]}
58... Ne3 {[%clk 0:00:04.5]} 59. Rdb5 {[%clk 0:00:22.5]} 1-0

[Event "*** Titled Tuesday Blitz"]
[Site "Chess.com"]
[Date "2020.04.21"]
[Round "9"]
[White "temus_galaktionov"]
[Black "eldur16"]
[Result "1-0"]
[WhiteElo "2742"]
[BlackElo "2520"]
[TimeControl "180+1"]
[EndTime "11:51:18 PDT"]
[Termination "temus_galaktionov won on time"]

1. d4 {[%clk 0:03:00.9]} 1... Nf6 {[%clk 0:02:59.4]} 2. Nf3 {[%clk 0:02:59.2]}
2... g6 {[%clk 0:02:58.8]} 3. c4 {[%clk 0:02:59.3]} 3... Bg7 {[%clk 0:02:58.4]}
4. Nc3 {[%clk 0:02:59.8]} 4... O-O {[%clk 0:02:58.2]} 5. e4 {[%clk 0:02:59.7]}
5... d6 {[%clk 0:02:58.4]} 6. Be2 {[%clk 0:03:00.2]} 6... e5 {[%clk 0:02:58]} 7.
O-O {[%clk 0:03:00.5]} 7... Nc6 {[%clk 0:02:58]} 8. d5 {[%clk 0:03:00.1]} 8...
Ne7 {[%clk 0:02:58]} 9. Ne1 {[%clk 0:03:00.8]} 9... Ne8 {[%clk 0:02:57.8]} 10.
f3 {[%clk 0:03:01.7]} 10... f5 {[%clk 0:02:57.3]} 11. g4 {[%clk 0:03:02.6]}
11... Kh8 {[%clk 0:02:52.5]} 12. Be3 {[%clk 0:03:01.7]} 12... Nf6 {[%clk
0:02:50.1]} 13. Nd3 {[%clk 0:03:00.6]} 13... c5 {[%clk 0:02:38.4]} 14. a3 {[%clk
0:02:59.5]} 14... b6 {[%clk 0:02:35.3]} 15. b4 {[%clk 0:02:59]} 15... h5 {[%clk
0:02:29.7]} 16. g5 {[%clk 0:02:57.2]} 16... Nh7 {[%clk 0:02:20.6]} 17. h4 {[%clk
0:02:57.4]} 17... f4 {[%clk 0:02:08.5]} 18. Bf2 {[%clk 0:02:30.4]} 18... Bh3
{[%clk 0:02:05.7]} 19. Re1 {[%clk 0:02:29.5]} 19... Nxg5 {[%clk 0:01:52.8]} 20.
hxg5 {[%clk 0:02:25.6]} 20... Nxd5 {[%clk 0:01:51.3]} 21. Kh2 {[%clk 0:01:53.7]}
21... Nxc3 {[%clk 0:01:50.1]} 22. Qd2 {[%clk 0:01:53.2]} 22... Nxe2 {[%clk
0:01:49.7]} 23. Kxh3 {[%clk 0:01:43.9]} 23... Nd4 {[%clk 0:01:48.8]} 24. Bxd4
{[%clk 0:01:43.6]} 24... cxd4 {[%clk 0:01:42.5]} 25. Rg1 {[%clk 0:01:41.7]}
25... Qd7+ {[%clk 0:01:37.4]} 26. Kh4 {[%clk 0:01:41.2]} 26... Rfc8 {[%clk
0:01:33.3]} 27. Rgc1 {[%clk 0:01:37]} 27... Bf8 {[%clk 0:01:32.1]} 28. c5 {[%clk
0:01:28.1]} 28... Be7 {[%clk 0:01:21.4]} 29. Qg2 {[%clk 0:01:27.3]} 29... bxc5
{[%clk 0:01:18]} 30. bxc5 {[%clk 0:01:26.7]} 30... Rab8 {[%clk 0:01:17.8]} 31.
Rab1 {[%clk 0:01:23.3]} 31... Qe6 {[%clk 0:01:10.6]} 32. Rxb8 {[%clk 0:01:18.6]}
32... Rxb8 {[%clk 0:01:09.8]} 33. c6 {[%clk 0:01:19.5]} 33... Rc8 {[%clk
0:01:06.6]} 34. Nb4 {[%clk 0:01:19.2]} 34... Bd8 {[%clk 0:00:54.3]} 35. Nd5
{[%clk 0:01:18.4]} 35... Bb6 {[%clk 0:00:52.4]} 36. Qe2 {[%clk 0:01:11.4]} 36...
Bc5 {[%clk 0:00:50.9]} 37. Qa6 {[%clk 0:01:08.5]} 37... Qe8 {[%clk 0:00:47.1]}
38. c7 {[%clk 0:01:06.9]} 38... Qd7 {[%clk 0:00:41.3]} 39. Qb7 {[%clk
0:01:02.1]} 39... Kg7 {[%clk 0:00:37.7]} 40. a4 {[%clk 0:00:56.8]} 40... d3
{[%clk 0:00:34.9]} 41. Rd1 {[%clk 0:00:54.8]} 41... Bb6 {[%clk 0:00:33.9]} 42.
Rxd3 {[%clk 0:00:52.5]} 42... Bc5 {[%clk 0:00:17.5]} 43. Rd2 {[%clk 0:00:49.5]}
43... Kf7 {[%clk 0:00:16.9]} 44. Rc2 {[%clk 0:00:42.3]} 44... Bb6 {[%clk
0:00:13.9]} 45. Rd2 {[%clk 0:00:18.4]} 45... Rxc7 {[%clk 0:00:09.8]} 46. Nxc7
{[%clk 0:00:17.4]} 46... Qxc7 {[%clk 0:00:09.2]} 47. Qxc7+ {[%clk 0:00:16.4]}
47... Bxc7 {[%clk 0:00:09.4]} 48. Rc2 {[%clk 0:00:16.2]} 48... Bb6 {[%clk
0:00:09.4]} 49. Rc8 {[%clk 0:00:15.9]} 49... Bc5 {[%clk 0:00:06.5]} 50. Kh3
{[%clk 0:00:15.5]} 50... Ke6 {[%clk 0:00:05.8]} 51. Rg8 {[%clk 0:00:15]} 51...
Kf7 {[%clk 0:00:05.5]} 52. Ra8 {[%clk 0:00:14.5]} 52... Ke6 {[%clk 0:00:05.9]}
53. Kg2 {[%clk 0:00:14]} 53... d5 {[%clk 0:00:05.6]} 54. exd5+ {[%clk
0:00:13.8]} 54... Kxd5 {[%clk 0:00:05.9]} 55. Rg8 {[%clk 0:00:14.4]} 55... e4
{[%clk 0:00:05.9]} 56. fxe4+ {[%clk 0:00:14.8]} 56... Kxe4 {[%clk 0:00:05.1]}
57. Rxg6 {[%clk 0:00:15.7]} 57... Kf5 {[%clk 0:00:05.2]} 58. Rg8 {[%clk
0:00:15.6]} 58... Kg4 {[%clk 0:00:05.3]} 59. g6 {[%clk 0:00:15.7]} 59... f3+
{[%clk 0:00:05.6]} 60. Kf1 {[%clk 0:00:15.9]} 60... Kg5 {[%clk 0:00:05.7]} 61.
g7 {[%clk 0:00:14.6]} 61... Bd4 {[%clk 0:00:05.8]} 62. Ra8 {[%clk 0:00:12.1]}
62... Bxg7 {[%clk 0:00:05.2]} 63. Rxa7 {[%clk 0:00:12.5]} 63... Bd4 {[%clk
0:00:04.8]} 64. Rd7 {[%clk 0:00:12.3]} 64... Be3 {[%clk 0:00:04.3]} 65. Rf7
{[%clk 0:00:11.4]} 65... Kg4 {[%clk 0:00:03.8]} 66. a5 {[%clk 0:00:11.3]} 66...
h4 {[%clk 0:00:03.5]} 67. a6 {[%clk 0:00:11.2]} 67... h3 {[%clk 0:00:03.6]} 68.
a7 {[%clk 0:00:11]} 68... h2 {[%clk 0:00:01.8]} 69. Rg7+ {[%clk 0:00:11.2]}
69... Kh4 {[%clk 0:00:01]} 70. Rh7+ {[%clk 0:00:11.3]} 1-0

[Event "*** Titled Tuesday Blitz"]
[Site "Chess.com"]
[Date "2020.04.21"]
[Round "9"]
[White "grunbergmihai"]
[Black "arminmusovic"]
[Result "1-0"]
[WhiteElo "2384"]
[BlackElo "2475"]
[TimeControl "180+1"]
[EndTime "11:51:26 PDT"]
[Termination "grunbergmihai won by resignation"]

1. Nf3 {[%clk 0:03:00.9]} 1... a6 {[%clk 0:02:42.8]} 2. e4 {[%clk 0:02:54.5]}
2... e6 {[%clk 0:02:38.5]} 3. d4 {[%clk 0:02:54.1]} 3... d5 {[%clk 0:02:38.7]}
4. Nbd2 {[%clk 0:02:50.3]} 4... Nf6 {[%clk 0:02:37.7]} 5. Bd3 {[%clk 0:02:47.3]}
5... c5 {[%clk 0:02:30.4]} 6. c3 {[%clk 0:02:46.4]} 6... Nc6 {[%clk 0:02:30.1]}
7. e5 {[%clk 0:02:43.7]} 7... Ng8 {[%clk 0:02:28.5]} 8. O-O {[%clk 0:02:42.3]}
8... Nge7 {[%clk 0:02:28.9]} 9. dxc5 {[%clk 0:02:37.9]} 9... Ng6 {[%clk
0:02:29.1]} 10. Bxg6 {[%clk 0:02:34.8]} 10... hxg6 {[%clk 0:02:29.3]} 11. b4
{[%clk 0:02:34.5]} 11... a5 {[%clk 0:02:23.6]} 12. b5 {[%clk 0:02:30]} 12... Na7
{[%clk 0:02:19.7]} 13. c4 {[%clk 0:02:07.5]} 13... Bxc5 {[%clk 0:02:15.4]} 14.
Nb3 {[%clk 0:02:05.7]} 14... b6 {[%clk 0:02:03.9]} 15. Nxc5 {[%clk 0:02:01.1]}
15... bxc5 {[%clk 0:02:03.5]} 16. Ba3 {[%clk 0:01:57.7]} 16... Bb7 {[%clk
0:01:56.5]} 17. Bxc5 {[%clk 0:01:55.4]} 17... dxc4 {[%clk 0:01:56.9]} 18. Qxd8+
{[%clk 0:01:53.7]} 18... Kxd8 {[%clk 0:01:57.7]} 19. Rfd1+ {[%clk 0:01:49.4]}
19... Kc8 {[%clk 0:01:56.5]} 20. Nd4 {[%clk 0:01:34.2]} 20... Bd5 {[%clk
0:01:52]} 21. Rab1 {[%clk 0:01:22.3]} 21... Kb7 {[%clk 0:01:49.7]} 22. f4 {[%clk
0:01:05.7]} 22... Rac8 {[%clk 0:01:37.6]} 23. Bd6 {[%clk 0:00:58.8]} 23... c3
{[%clk 0:01:28.8]} 24. Rdc1 {[%clk 0:00:48.7]} 24... Rc4 {[%clk 0:01:27.8]} 25.
b6 {[%clk 0:00:43.2]} 25... Nc8 {[%clk 0:01:13.3]} 26. Nb5 {[%clk 0:00:37.5]}
26... c2 {[%clk 0:01:03.5]} 27. Rb2 {[%clk 0:00:37.2]} 27... Be4 {[%clk
0:01:03.5]} 28. Bc7 {[%clk 0:00:33.3]} 28... Rh4 {[%clk 0:00:56.8]} 29. g3
{[%clk 0:00:31.6]} 29... Rh8 {[%clk 0:00:54.3]} 30. Nd6+ {[%clk 0:00:29.5]}
30... Nxd6 {[%clk 0:00:54.6]} 31. exd6 {[%clk 0:00:29.8]} 31... Rd4 {[%clk
0:00:55.1]} 32. Rbxc2 {[%clk 0:00:26.2]} 32... Bxc2 {[%clk 0:00:49.4]} 33. Rxc2
{[%clk 0:00:27.1]} 33... Rh5 {[%clk 0:00:32.3]} 34. Kg2 {[%clk 0:00:25]} 34...
Rhd5 {[%clk 0:00:27.3]} 35. Kh3 {[%clk 0:00:20.3]} 35... f5 {[%clk 0:00:23.3]}
36. Re2 {[%clk 0:00:17.5]} 36... Rxd6 {[%clk 0:00:23.5]} 37. Bxd6 {[%clk
0:00:16.8]} 37... Rxd6 {[%clk 0:00:24.4]} 38. Kh4 {[%clk 0:00:17.2]} 38... Kxb6
{[%clk 0:00:22.4]} 39. Kg5 {[%clk 0:00:17.1]} 39... a4 {[%clk 0:00:17.8]} 40. h4
{[%clk 0:00:16.6]} 40... Kc5 {[%clk 0:00:16.9]} 41. Kxg6 {[%clk 0:00:16]} 41...
Rd3 {[%clk 0:00:15.5]} 42. Rg2 {[%clk 0:00:14.7]} 42... Kd5 {[%clk 0:00:14.6]}
43. h5 {[%clk 0:00:14.5]} 43... Ke4 {[%clk 0:00:13.5]} 44. Kxg7 {[%clk
0:00:13.9]} 44... Kf3 {[%clk 0:00:13.9]} 45. Rg1 {[%clk 0:00:13.9]} 45... Kf2
{[%clk 0:00:13.9]} 46. Rh1 {[%clk 0:00:13.5]} 46... Rxg3+ {[%clk 0:00:13.7]} 47.
Kf7 {[%clk 0:00:13.3]} 47... Kg2 {[%clk 0:00:13.5]} 48. Rh4 {[%clk 0:00:12.9]}
48... Rc3 {[%clk 0:00:12]} 49. h6 {[%clk 0:00:12.2]} 49... Kg3 {[%clk
0:00:11.2]} 50. Rh1 {[%clk 0:00:10.9]} 50... Rc8 {[%clk 0:00:09.7]} 51. h7
{[%clk 0:00:10.3]} 51... Rh8 {[%clk 0:00:10.2]} 52. Kxe6 {[%clk 0:00:08.9]}
52... Kxf4 {[%clk 0:00:09.9]} 53. Kf6 {[%clk 0:00:08.8]} 53... Ke4 {[%clk
0:00:09.5]} 54. Kg7 {[%clk 0:00:08.6]} 54... Rxh7+ {[%clk 0:00:09.2]} 55. Rxh7
{[%clk 0:00:07.8]} 55... f4 {[%clk 0:00:10.1]} 56. Rh4 {[%clk 0:00:07.2]} 56...
Ke3 {[%clk 0:00:10]} 57. Rh5 {[%clk 0:00:04]} 57... f3 {[%clk 0:00:08.7]} 58.
Re5+ {[%clk 0:00:03.7]} 58... Kd2 {[%clk 0:00:08]} 59. Rf5 {[%clk 0:00:03.6]}
59... Ke2 {[%clk 0:00:08.4]} 60. Re5+ {[%clk 0:00:03.5]} 60... Kd2 {[%clk
0:00:08.5]} 61. Rf5 {[%clk 0:00:02.9]} 61... Ke2 {[%clk 0:00:08.9]} 62. Kf6
{[%clk 0:00:02.7]} 62... f2 {[%clk 0:00:09]} 63. Ke5 {[%clk 0:00:02.6]} 63...
f1=Q {[%clk 0:00:09]} 64. Rxf1 {[%clk 0:00:02.6]} 64... Kxf1 {[%clk 0:00:09.9]}
65. Kd4 {[%clk 0:00:03.5]} 65... Kf2 {[%clk 0:00:10.6]} 66. Kc4 {[%clk
0:00:03.6]} 66... Kf3 {[%clk 0:00:11.1]} 67. Kb4 {[%clk 0:00:03.9]} 67... Ke4
{[%clk 0:00:12]} 68. Kxa4 {[%clk 0:00:03.9]} 68... Kd5 {[%clk 0:00:11.2]} 69.
Kb5 {[%clk 0:00:04.8]} 69... Kd6 {[%clk 0:00:10.9]} 70. Kb6 {[%clk 0:00:04.9]}
1-0

[Event "*** Titled Tuesday Blitz"]
[Site "Chess.com"]
[Date "2020.04.21"]
[Round "9"]
[White "crossingthestreet"]
[Black "Forantes"]
[Result "0-1"]
[WhiteElo "2255"]
[BlackElo "2428"]
[TimeControl "180+1"]
[EndTime "11:51:34 PDT"]
[Termination "Forantes won by resignation"]

1. c4 {[%clk 0:03:00.9]} 1... e5 {[%clk 0:02:54.3]} 2. Nc3 {[%clk 0:03:01]} 2...
Nc6 {[%clk 0:02:49.9]} 3. e3 {[%clk 0:03:00.5]} 3... Nf6 {[%clk 0:02:48.9]} 4.
Nf3 {[%clk 0:02:59.7]} 4... a5 {[%clk 0:02:42.8]} 5. d4 {[%clk 0:02:51.2]} 5...
exd4 {[%clk 0:02:42.5]} 6. exd4 {[%clk 0:02:51.2]} 6... Bb4 {[%clk 0:02:43.4]}
7. Be2 {[%clk 0:02:44.4]} 7... O-O {[%clk 0:02:42.7]} 8. d5 {[%clk 0:02:37]}
8... Ne7 {[%clk 0:02:42.8]} 9. O-O {[%clk 0:02:37]} 9... d6 {[%clk 0:02:42]} 10.
Bf4 {[%clk 0:02:32.1]} 10... Ng6 {[%clk 0:02:38.7]} 11. Bg3 {[%clk 0:02:31.6]}
11... Re8 {[%clk 0:02:19.4]} 12. Bd3 {[%clk 0:02:19.1]} 12... Bg4 {[%clk
0:02:00.8]} 13. h3 {[%clk 0:02:18.9]} 13... Bh5 {[%clk 0:01:53.4]} 14. Nb5
{[%clk 0:01:36]} 14... Ne4 {[%clk 0:01:42.1]} 15. Bh2 {[%clk 0:01:24.1]} 15...
Bxf3 {[%clk 0:01:30.5]} 16. Qxf3 {[%clk 0:01:08.7]} 16... Nd2 {[%clk 0:01:30.5]}
17. Qh5 {[%clk 0:00:58.1]} 17... Nxf1 {[%clk 0:01:29.5]} 18. Rxf1 {[%clk
0:00:58.4]} 18... c6 {[%clk 0:01:25.1]} 19. Nd4 {[%clk 0:00:54.5]} 19... cxd5
{[%clk 0:01:20.2]} 20. cxd5 {[%clk 0:00:54.2]} 20... Qf6 {[%clk 0:01:19.7]} 21.
Nf5 {[%clk 0:00:43.9]} 21... Rad8 {[%clk 0:01:07.7]} 22. Rc1 {[%clk 0:00:37]}
22... Qxb2 {[%clk 0:01:02.2]} 23. Rd1 {[%clk 0:00:29.3]} 23... Qc3 {[%clk
0:00:47]} 24. Bg3 {[%clk 0:00:24.7]} 24... Re1+ {[%clk 0:00:36.3]} 25. Rxe1
{[%clk 0:00:22.7]} 25... Qxe1+ {[%clk 0:00:37.2]} 26. Kh2 {[%clk 0:00:22.6]}
26... Qe8 {[%clk 0:00:28.8]} 27. h4 {[%clk 0:00:18.1]} 27... b5 {[%clk
0:00:18.4]} 28. Qg4 {[%clk 0:00:17.6]} 28... Bc3 {[%clk 0:00:09.9]} 29. h5
{[%clk 0:00:17.5]} 29... Nf8 {[%clk 0:00:04.9]} 30. Nxd6 {[%clk 0:00:14.6]}
30... Rxd6 {[%clk 0:00:02.4]} 31. Bxd6 {[%clk 0:00:14.1]} 31... Be5+ {[%clk
0:00:03.3]} 32. Bxe5 {[%clk 0:00:13.8]} 32... Qxe5+ {[%clk 0:00:04.2]} 33. g3
{[%clk 0:00:13.7]} 33... Qxd5 {[%clk 0:00:04.8]} 34. Be4 {[%clk 0:00:14.3]}
34... Qe6 {[%clk 0:00:04.9]} 35. Bf5 {[%clk 0:00:13.7]} 35... Qd5 {[%clk
0:00:04.7]} 36. h6 {[%clk 0:00:12.8]} 36... g6 {[%clk 0:00:04.6]} 37. Be4 {[%clk
0:00:11.4]} 37... Qh5+ {[%clk 0:00:03.4]} 38. Qxh5 {[%clk 0:00:11.3]} 38... gxh5
{[%clk 0:00:04.3]} 39. Kh3 {[%clk 0:00:09.7]} 39... Ne6 {[%clk 0:00:03.5]} 40.
Kh4 {[%clk 0:00:09.5]} 40... Nc5 {[%clk 0:00:04]} 41. Bd5 {[%clk 0:00:08.9]}
41... b4 {[%clk 0:00:04.1]} 42. Kxh5 {[%clk 0:00:09]} 42... a4 {[%clk
0:00:04.5]} 43. g4 {[%clk 0:00:08.2]} 43... b3 {[%clk 0:00:04.9]} 44. axb3
{[%clk 0:00:08.5]} 44... axb3 {[%clk 0:00:05.8]} 45. f4 {[%clk 0:00:07.9]} 45...
b2 {[%clk 0:00:06.2]} 46. Ba2 {[%clk 0:00:08.3]} 46... Na4 {[%clk 0:00:06.3]}
47. Bb1 {[%clk 0:00:05.4]} 47... Nc3 {[%clk 0:00:06.3]} 48. Bc2 {[%clk
0:00:05.6]} 48... b1=Q {[%clk 0:00:06.4]} 49. Bxb1 {[%clk 0:00:06.2]} 49... Nxb1
{[%clk 0:00:07.3]} 50. g5 {[%clk 0:00:06.3]} 50... Nd2 {[%clk 0:00:05.8]} 51. f5
{[%clk 0:00:06.6]} 51... Ne4 {[%clk 0:00:05.4]} 52. g6 {[%clk 0:00:06.4]} 52...
f6 {[%clk 0:00:04.8]} 53. g7 {[%clk 0:00:04.8]} 53... Ng5 {[%clk 0:00:05]} 54.
Kg4 {[%clk 0:00:05]} 54... Nf7 {[%clk 0:00:04.9]} 55. Kh5 {[%clk 0:00:05.5]}
55... Nd6 {[%clk 0:00:05.3]} 56. Kg4 {[%clk 0:00:05.9]} 56... Kf7 {[%clk
0:00:05.8]} 57. Kh5 {[%clk 0:00:06.2]} 57... Nxf5 {[%clk 0:00:06]} 58. Kg4
{[%clk 0:00:05.8]} 58... Ne7 {[%clk 0:00:06.3]} 59. Kh5 {[%clk 0:00:06.7]} 59...
Ng8 {[%clk 0:00:06.2]} 60. Kg4 {[%clk 0:00:06.4]} 60... Nxh6+ {[%clk 0:00:06.7]}
61. Kh5 {[%clk 0:00:07.3]} 61... Ng8 {[%clk 0:00:07.1]} 62. Kg4 {[%clk
0:00:08.2]} 62... Kxg7 {[%clk 0:00:07.6]} 63. Kh5 {[%clk 0:00:08.8]} 63... f5
{[%clk 0:00:07.6]} 64. Kg5 {[%clk 0:00:09]} 64... Ne7 {[%clk 0:00:08.3]} 65. Kf4
{[%clk 0:00:09.1]} 65... Kf6 {[%clk 0:00:08.6]} 66. Kg3 {[%clk 0:00:09.6]} 66...
Kg5 {[%clk 0:00:09]} 67. Kf3 {[%clk 0:00:10.5]} 67... f4 {[%clk 0:00:09.1]} 68.
Kf2 {[%clk 0:00:09.4]} 68... Nf5 {[%clk 0:00:09.7]} 69. Kg2 {[%clk 0:00:10.3]}
69... Nh4+ {[%clk 0:00:10]} 70. Kf2 {[%clk 0:00:10.3]} 70... Kg4 {[%clk
0:00:10.2]} 71. Ke2 {[%clk 0:00:10.7]} 71... f3+ {[%clk 0:00:10]} 72. Kf2 {[%clk
0:00:11.6]} 72... Nf5 {[%clk 0:00:10.5]} 73. Kg1 {[%clk 0:00:11.4]} 73... Kg3
{[%clk 0:00:10.9]} 74. Kf1 {[%clk 0:00:11]} 74... Ne3+ {[%clk 0:00:11.4]} 75.
Ke1 {[%clk 0:00:10.9]} 75... f2+ {[%clk 0:00:11.2]} 76. Ke2 {[%clk 0:00:11.5]}
76... f1=Q+ {[%clk 0:00:11.4]} 77. Kxe3 {[%clk 0:00:12.2]} 77... Qf3+ {[%clk
0:00:11.8]} 78. Kd4 {[%clk 0:00:12.6]} 78... Kf4 {[%clk 0:00:12]} 79. Kc5 {[%clk
0:00:12.4]} 79... Qe4 {[%clk 0:00:12.3]} 80. Kd6 {[%clk 0:00:13.3]} 80... Qe5+
{[%clk 0:00:12]} 81. Kc6 {[%clk 0:00:13.6]} 81... Qd4 {[%clk 0:00:11.8]} 82. Kc7
{[%clk 0:00:14]} 82... Qd5 {[%clk 0:00:11.5]} 83. Kb6 {[%clk 0:00:14.5]} 83...
Qc4 {[%clk 0:00:11.7]} 84. Kb7 {[%clk 0:00:14.3]} 84... Qc5 {[%clk 0:00:12]} 85.
Ka6 {[%clk 0:00:14.1]} 85... Qb4 {[%clk 0:00:12.2]} 86. Ka7 {[%clk 0:00:13.8]}
86... Ke5 {[%clk 0:00:13.1]} 87. Ka8 {[%clk 0:00:14.7]} 87... Kd6 {[%clk
0:00:14]} 0-1